[Event "FIDE Grand Swiss 2023"]
[Site "Villa Marina, Douglas, Isle of Man"]
[Date "2023.10.25"]
[Round "1.14"]
[White "Harikrishna, Pentala"]
[Black "Henriquez Villagra, Cristobal"]
[Result "1/2-1/2"]
[WhiteElo "2716"]
[BlackElo "2630"]
[EventDate "2023.10.25"]
[ECO "B53"]
[PlyCount "233"]
[BlackFideId "3409350"]
[TimeControl "40/100 + 20/50 + 15 + 30s/move"]
[WhiteFideId "5007003"]

1.e4 {[%clk 01:40:56] [%emt 00:00:03]} 1...c5 {[%clk 01:40:50] [%emt 00:00:11]} 
2.Nf3 {[%clk 01:41:19] [%emt 00:00:07]} 2...d6 {[%clk 01:41:08] [%emt 00:00:11]} 
3.d4 {[%clk 01:41:43] [%emt 00:00:06]} 3...cxd4 {[%clk 01:41:33] [%emt
00:00:05]} 4.Qxd4 {[%clk 01:42:07] [%emt 00:00:06]} 4...Nc6 {[%clk 01:33:09]
[%emt 00:08:54]} 5.Qe3 {[%clk 01:42:22] [%emt 00:00:15]} 5...Nf6 {[%clk
01:30:47] [%emt 00:02:52]} 6.h3 {[%clk 01:42:19] [%emt 00:00:33]} 6...g6 {[%clk
01:29:13] [%emt 00:02:04]} 7.Bc4 {[%clk 01:42:34] [%emt 00:00:15]} 7...Bg7 
{[%clk 01:25:01] [%emt 00:04:43]} 8.O-O {[%clk 01:42:44] [%emt 00:00:19]} 
8...O-O {[%clk 01:24:27] [%emt 00:01:04]} 9.Rd1 {[%clk 01:41:22] [%emt
00:01:52]} 9...Qc7 {[%clk 01:07:20] [%emt 00:17:38]} 10.Nc3 {[%clk 01:40:01]
[%emt 00:01:50]} 10...a6 {[%clk 01:04:29] [%emt 00:03:22]} 11.a4 {[%clk
01:34:36] [%emt 00:05:55]} 11...e6 {[%emt 00:20:14]} 12.Qe2 {[%emt 00:03:23]} 
12...Nh5 {[%emt 00:03:12]} 13.Be3 {[%emt 00:06:11]} 13...Ne5 {[%emt 00:06:58]} 
14.Nxe5 {[%clk 01:11:37] [%emt 00:00:03]} 14...Bxe5 {[%emt 00:06:17]} 15.a5 
{[%clk 01:05:23] [%emt 00:02:43]} 15...Bd7 16.Bb6 {[%clk 01:03:14] [%emt
00:02:23]} 16...Qc8 17.Bb3 {[%emt 00:02:40]} 17...Bc6 {[%clk 00:47:21] [%emt
00:00:55]} 18.Qe3 {[%clk 00:58:26] [%emt 00:05:18]} 18...Qe8 {[%clk 00:44:16]
[%emt 00:03:35]} 19.Ne2 {[%clk 00:57:45] [%emt 00:01:10]} 19...Bxb2 {[%clk
00:40:16] [%emt 00:04:31]} 20.Ra2 {[%clk 00:57:49] [%emt 00:00:25]} 20...Bg7 
{[%clk 00:33:19] [%emt 00:07:28]} 21.Rxd6 {[%clk 00:56:09] [%emt 00:02:10]} 
21...Be5 {[%clk 00:27:30] [%emt 00:06:19]} 22.Rd1 {[%clk 00:55:20] [%emt
00:01:18]} 22...Qb8 {[%clk 00:26:51] [%emt 00:01:10]} 23.Nd4 {[%clk 00:49:18]
[%emt 00:06:33]} 23...Rc8 {[%clk 00:20:49] [%emt 00:06:31]} 24.c4 {[%clk
00:46:13] [%emt 00:03:35]} 24...Bxd4 {[%clk 00:17:16] [%emt 00:04:02]} 25.Rxd4 
{[%clk 00:36:05] [%emt 00:10:38]} 25...Qf4 {[%clk 00:17:24] [%emt 00:00:22]} 
26.Re2 {[%clk 00:30:53] [%emt 00:05:41]} 26...e5 {[%clk 00:15:04] [%emt
00:02:51]} 27.Rd6 {[%clk 00:30:32] [%emt 00:00:51]} 27...Re8 {[%clk 00:14:25]
[%emt 00:01:09]} 28.c5 {[%clk 00:27:57] [%emt 00:03:05]} 28...Rac8 {[%clk
00:11:23] [%emt 00:03:33]} 29.Re1 {[%clk 00:23:10] [%emt 00:05:16]} 29...Qxe3 
{[%clk 00:11:15] [%emt 00:00:39]} 30.Rxe3 {[%clk 00:22:33] [%emt 00:01:07]} 
30...Nf4 {[%clk 00:11:18] [%emt 00:00:27]} 31.f3 {[%clk 00:21:24] [%emt
00:01:38]} 31...Kg7 {[%clk 00:09:45] [%emt 00:02:03]} 32.h4 {[%clk 00:21:35]
[%emt 00:00:19]} 32...Ne6 {[%clk 00:09:18] [%emt 00:00:58]} 33.Kf2 {[%clk
00:18:20] [%emt 00:03:44]} 33...Nd4 {[%clk 00:09:27] [%emt 00:00:21]} 34.Bd5 
{[%clk 00:17:06] [%emt 00:01:44]} 34...Kf8 {[%clk 00:07:47] [%emt 00:02:10]} 
35.g4 {[%clk 00:13:39] [%emt 00:03:57]} 35...Ne6 {[%clk 00:05:16] [%emt
00:03:01]} 36.Ba2 {[%clk 00:11:10] [%emt 00:02:58]} 36...Kg7 {[%clk 00:05:32]
[%emt 00:00:15]} 37.Red3 {[%clk 00:10:57] [%emt 00:00:43]} 37...h6 {[%clk
00:05:43] [%emt 00:00:20]} 38.Rd2 {[%clk 00:09:31] [%emt 00:01:55]} 38...Kf8 
{[%clk 00:04:19] [%emt 00:01:55]} 39.Kg3 {[%clk 00:09:03] [%emt 00:00:57]} 
39...Ba4 {[%clk 00:04:07] [%emt 00:00:43]} 40.R2d5 {[%clk 00:05:21] [%emt
00:04:11]} 40...Nf4 {[%clk 00:04:17] [%emt 00:00:20]} 41.Rd2 {[%clk 00:01:06]
[%emt 00:04:45]} 41...Ne6 {[%clk 00:04:03] [%emt 00:00:45]} 42.Rb2 {[%clk
00:39:19] [%emt 00:12:16]} 42...Bc6 {[%clk 00:37:00] [%emt 00:17:33]} 43.Bd5 
{[%clk 00:34:35] [%emt 00:05:14]} 43...Kg7 {[%clk 00:27:17] [%emt 00:10:13]} 
44.Rd2 {[%clk 00:32:24] [%emt 00:02:40]} 44...Re7 {[%clk 00:23:20] [%emt
00:04:28]} 45.g5 {[%clk 00:29:44] [%emt 00:03:10]} 45...hxg5 {[%clk 00:19:52]
[%emt 00:03:58]} 46.hxg5 {[%clk 00:30:03] [%emt 00:00:11]} 46...Ree8 {[%clk
00:19:06] [%emt 00:01:17]} 47.Bxe6 {[%clk 00:29:50] [%emt 00:00:42]} 47...Rxe6 
{[%clk 00:18:05] [%emt 00:01:31]} 48.Rd8 {[%clk 00:26:21] [%emt 00:03:59]} 
48...Re8 {[%clk 00:13:44] [%emt 00:04:51]} 49.Rxc8 {[%clk 00:23:48] [%emt
00:03:03]} 49...Rxc8 {[%clk 00:14:00] [%emt 00:00:14]} 50.Bd8 {[%clk 00:24:14]
[%emt 00:00:04]} 50...Kf8 {[%clk 00:11:10] [%emt 00:03:20]} 51.Bf6 {[%clk
00:23:31] [%emt 00:01:13]} 51...Ke8 {[%clk 00:11:20] [%emt 00:00:21]} 52.Bxe5 
{[%clk 00:23:40] [%emt 00:00:21]} 52...Ba4 {[%clk 00:10:49] [%emt 00:01:00]} 
53.Bd6 {[%clk 00:17:19] [%emt 00:06:51]} 53...Kd7 {[%clk 00:10:36] [%emt
00:00:43]} 54.Kf4 {[%clk 00:17:38] [%emt 00:00:11]} 54...Re8 {[%clk 00:10:00]
[%emt 00:01:06]} 55.Ke3 {[%clk 00:16:05] [%emt 00:02:02]} 55...Kc6 {[%clk
00:03:52] [%emt 00:06:39]} 56.Rb2 {[%clk 00:16:19] [%emt 00:00:16]} 56...Bb5 
{[%clk 00:04:18] [%emt 00:00:05]} 57.Rh2 {[%clk 00:16:43] [%emt 00:00:05]} 
57...Kd7 {[%clk 00:04:25] [%emt 00:00:23]} 58.Kd4 {[%clk 00:16:10] [%emt
00:01:02]} 58...Bc6 {[%clk 00:04:49] [%emt 00:00:07]} 59.Rh4 {[%clk 00:16:08]
[%emt 00:00:31]} 59...Ba4 {[%clk 00:04:34] [%emt 00:00:46]} 60.Rf4 {[%clk
00:12:03] [%emt 00:04:34]} 60...Bb3 {[%clk 00:04:39] [%emt 00:00:26]} 61.Kc3 
{[%clk 00:12:27] [%emt 00:00:06]} 61...Be6 {[%clk 00:03:33] [%emt 00:01:36]} 
62.Rh4 {[%clk 00:12:48] [%emt 00:00:08]} 62...Kc6 {[%clk 00:02:17] [%emt
00:01:47]} 63.Rh2 {[%clk 00:11:30] [%emt 00:01:47]} 63...Bc8 {[%clk 00:14:01]
[%emt 00:03:47]} 64.Kc4 {[%clk 00:25:12] [%emt 00:01:47]} 64...Be6+ {[%clk
00:06:31] [%emt 00:08:00]} 65.Kd4 {[%clk 00:24:16] [%emt 00:01:26]} 65...Bc8 
{[%clk 00:04:46] [%emt 00:02:16]} 66.Rb2 {[%clk 00:21:22] [%emt 00:03:23]} 
66...Kd7 {[%clk 00:03:52] [%emt 00:01:25]} 67.Be5 {[%clk 00:21:26] [%emt
00:00:25]} 67...Re6 {[%clk 00:03:11] [%emt 00:01:12]} 68.Kd5 {[%clk 00:17:41]
[%emt 00:04:14]} 68...Kd8 {[%clk 00:03:37] [%emt 00:00:05]} 69.Bd6 {[%clk
00:15:24] [%emt 00:02:47]} 69...Kd7 {[%clk 00:03:24] [%emt 00:00:43]} 70.Rh2 
{[%clk 00:12:33] [%emt 00:03:20]} 70...Re8 {[%clk 00:03:41] [%emt 00:00:13]} 
71.Rh7 {[%clk 00:11:07] [%emt 00:01:57]} 71...Kd8 {[%clk 00:04:06] [%emt
00:00:05]} 72.c6 {[%clk 00:09:40] [%emt 00:01:57]} 72...Be6+ {[%clk 00:03:53]
[%emt 00:00:43]} 73.Kc5 {[%clk 00:09:56] [%emt 00:00:13]} 73...bxc6 {[%clk
00:04:20] [%emt 00:00:03]} 74.Rh2 {[%clk 00:10:01] [%emt 00:00:25]} 74...Kd7 
{[%clk 00:04:07] [%emt 00:00:44]} 75.Rd2 {[%clk 00:09:39] [%emt 00:00:51]} 
75...Bh3 {[%clk 00:02:03] [%emt 00:02:34]} 76.Kb6 {[%clk 00:08:12] [%emt
00:01:58]} 76...Bf1 {[%clk 00:02:16] [%emt 00:00:17]} 77.Bf4+ {[%clk 00:06:42]
[%emt 00:02:00]} 77...Kc8 {[%clk 00:01:39] [%emt 00:01:06]} 78.Kxc6 {[%clk
00:06:56] [%emt 00:00:16]} 78...Bb5+ {[%clk 00:02:02] [%emt 00:00:07]} 79.Kd5 
{[%clk 00:06:50] [%emt 00:00:36]} 79...Kd7 {[%clk 00:01:40] [%emt 00:00:53]} 
80.Kc5+ {[%clk 00:06:45] [%emt 00:00:34]} 80...Ke7 {[%clk 00:01:25] [%emt
00:00:46]} 81.Bc7 {[%clk 00:06:17] [%emt 00:00:59]} 81...Rh8 {[%clk 00:01:26]
[%emt 00:00:28]} 82.Kb6 {[%clk 00:05:53] [%emt 00:00:55]} 82...Rh3 {[%clk
00:01:38] [%emt 00:00:17]} 83.Rf2 {[%clk 00:02:15] [%emt 00:04:07]} 83...Ke6 
{[%clk 00:01:45] [%emt 00:00:24]} 84.Kc5 {[%clk 00:02:09] [%emt 00:00:37]} 
84...Rh1 {[%clk 00:02:04] [%emt 00:00:11]} 85.Bf4 {[%clk 00:01:54] [%emt
00:00:44]} 85...Rf1 {[%clk 00:01:50] [%emt 00:00:44]} 86.Rd2 {[%clk 00:02:03]
[%emt 00:00:21]} 86...Rc1+ {[%clk 00:01:04] [%emt 00:01:16]} 87.Kb6 {[%clk
00:01:43] [%emt 00:00:50]} 87...Rc6+ {[%clk 00:01:02] [%emt 00:00:32]} 88.Kb7 
{[%clk 00:02:05] [%emt 00:00:09]} 88...Rc3 {[%clk 00:01:16] [%emt 00:00:16]} 
89.Rd6+ {[%clk 00:02:26] [%emt 00:00:09]} 89...Ke7 {[%clk 00:01:42] [%emt
00:00:03]} 90.Be5 {[%clk 00:02:09] [%emt 00:00:47]} 90...Rxf3 {[%clk 00:01:19]
[%emt 00:00:54]} 91.Kc7 {[%clk 00:01:53] [%emt 00:00:46]} 91...Rd3 {[%clk
00:01:11] [%emt 00:00:37]} 92.Bd4 {[%clk 00:01:25] [%emt 00:00:58]} 92...Ke8 
{[%clk 00:00:58] [%emt 00:00:43]} 93.Rd5 {[%clk 00:01:12] [%emt 00:00:42]} 
93...Ke7 {[%clk 00:01:12] [%emt 00:00:17]} 94.Re5+ {[%clk 00:00:56] [%emt
00:00:46]} 94...Kf8 {[%clk 00:01:41] [%emt 00:00:02]} 95.Bc5+ {[%clk 00:01:04]
[%emt 00:00:21]} 95...Kg8 {[%clk 00:01:42] [%emt 00:00:28]} 96.Be7 {[%clk
00:01:11] [%emt 00:00:23]} 96...Rc3+ {[%clk 00:00:46] [%emt 00:01:27]} 97.Kb7 
{[%clk 00:01:25] [%emt 00:00:16]} 97...Rd3 {[%clk 00:00:38] [%emt 00:00:39]} 
98.Kb6 {[%clk 00:01:05] [%emt 00:00:50]} 98...Rd7 {[%clk 00:00:52] [%emt
00:00:16]} 99.Bb4 {[%clk 00:00:55] [%emt 00:00:39]} 99...f6 {[%clk 00:00:40]
[%emt 00:00:42]} 100.gxf6 {[%clk 00:00:51] [%emt 00:00:35]} 100...Kf7 {[%clk
00:01:05] [%emt 00:00:05]} 101.Be7 {[%clk 00:01:01] [%emt 00:00:19]} 101...Rd4 
{[%clk 00:01:22] [%emt 00:00:13]} 102.Kc5 {[%clk 00:00:53] [%emt 00:00:37]} 
102...Rd2 {[%clk 00:00:43] [%emt 00:01:10]} 103.Rg5 {[%clk 00:01:06] [%emt
00:00:16]} 103...Ra2 {[%clk 00:00:56] [%emt 00:00:18]} 104.Kd6 {[%clk 00:00:55]
[%emt 00:00:37]} 104...Rd2+ {[%clk 00:01:14] [%emt 00:00:16]} 105.Ke5 {[%clk
00:01:07] [%emt 00:00:18]} 105...Ra2 {[%clk 00:01:11] [%emt 00:00:34]} 106.Bd8 
{[%clk 00:01:17] [%emt 00:00:19]} 106...Rd2 {[%clk 00:01:21] [%emt 00:00:19]} 
107.Bb6 {[%clk 00:01:29] [%emt 00:00:19]} 107...Rh2 {[%clk 00:01:43] [%emt
00:00:08]} 108.Rg1 {[%clk 00:01:07] [%emt 00:00:51]} 108...Rh5+ {[%clk 00:02:10]
[%emt 00:00:03]} 109.Kd6 {[%clk 00:01:32] [%emt 00:00:05]} 109...Kxf6 {[%clk
00:02:37] [%emt 00:00:04]} 110.e5+ {[%clk 00:02:00] [%emt 00:00:05]} 110...Kf5 
{[%clk 00:01:55] [%emt 00:01:09]} 111.e6 {[%clk 00:02:16] [%emt 00:00:14]} 
111...g5 {[%clk 00:02:21] [%emt 00:00:04]} 112.Re1 {[%clk 00:02:02] [%emt
00:00:44]} 112...Rh2 {[%clk 00:00:48] [%emt 00:02:03]} 113.e7 {[%clk 00:01:39]
[%emt 00:00:53]} 113...Rh6+ {[%clk 00:00:55] [%emt 00:00:23]} 114.Kc7 {[%clk
00:00:58] [%emt 00:01:10]} 114...Rc6+ {[%clk 00:01:02] [%emt 00:00:23]} 115.Kb7 
{[%clk 00:00:46] [%emt 00:00:43]} 115...Re6 {[%clk 00:01:17] [%emt 00:00:15]} 
116.e8=Q {[%clk 00:01:11] [%emt 00:00:05]} 116...Rxe8 {[%clk 00:01:41] [%emt
00:00:06]} 117.Rxe8 {[%clk 00:01:39] [%emt 00:00:03]} 1/2-1/2

[Event "FIDE Grand Swiss 2023"]
[Site "Villa Marina, Douglas, Isle of Man"]
[Date "2023.10.25"]
[Round "1.15"]
[White "L'ami, Erwin"]
[Black "Vidit, Santosh Gujrathi"]
[Result "1-0"]
[WhiteElo "2627"]
[BlackElo "2716"]
[EventDate "2023.10.25"]
[ECO "E32"]
[PlyCount "129"]
[BlackFideId "5029465"]
[TimeControl "40/100 + 20/50 + 15 + 30s/move"]
[WhiteFideId "1007998"]

1.d4 {[%clk 01:40:54] [%emt 00:00:05]} 1...Nf6 {[%clk 01:40:23] [%emt 00:00:38]} 
2.c4 {[%clk 01:41:14] [%emt 00:00:10]} 2...e6 {[%clk 01:40:33] [%emt 00:00:20]} 
3.Nc3 {[%clk 01:41:35] [%emt 00:00:09]} 3...Bb4 {[%clk 01:40:33] [%emt
00:00:30]} 4.Qc2 {[%clk 01:41:53] [%emt 00:00:11]} 4...O-O {[%clk 01:39:43]
[%emt 00:01:21]} 5.a3 {[%clk 01:42:01] [%emt 00:00:22]} 5...Bxc3+ {[%clk
01:40:03] [%emt 00:00:09]} 6.Qxc3 {[%clk 01:42:24] [%emt 00:00:07]} 6...Nc6 
{[%clk 01:39:50] [%emt 00:00:45]} 7.e3 {[%clk 01:36:46] [%emt 00:06:07]} 
7...Re8 {[%clk 01:35:01] [%emt 00:05:19]} 8.Ne2 {[%clk 01:23:57] [%emt
00:13:19]} 8...d5 {[%clk 01:29:41] [%emt 00:05:51]} 9.cxd5 {[%clk 01:15:59]
[%emt 00:08:27]} 9...Ne4 {[%clk 01:24:32] [%emt 00:05:39]} 10.Qd3 {[%clk
01:11:57] [%emt 00:04:31]} 10...exd5 {[%clk 01:24:42] [%emt 00:00:22]} 11.f3 
{[%clk 01:10:27] [%emt 00:01:59]} 11...Nd6 {[%clk 01:23:04] [%emt 00:02:08]} 
12.Nf4 {[%clk 01:06:43] [%emt 00:04:13]} 12...g5 {[%clk 01:04:42] [%emt
00:18:53]} 13.Nxd5 {[%clk 00:57:11] [%emt 00:10:01]} 13...Nf5 {[%clk 01:04:00]
[%emt 00:01:13]} 14.Nc3 {[%clk 00:55:33] [%emt 00:02:08]} 14...Nfxd4 {[%clk
01:01:16] [%emt 00:03:15]} 15.Kf2 {[%clk 00:46:23] [%emt 00:09:39]} 15...Bf5 
{[%clk 00:41:38] [%emt 00:20:07]} 16.e4 {[%clk 00:38:52] [%emt 00:08:02]} 
16...Be6 {[%clk 00:40:05] [%emt 00:02:03]} 17.Rb1 {[%clk 00:27:54] [%emt
00:11:27]} 17...Bb3 {[%clk 00:21:44] [%emt 00:18:53]} 18.Qd2 {[%clk 00:21:31]
[%emt 00:06:52]} 18...Re5 {[%clk 00:14:19] [%emt 00:07:55]} 19.h4 {[%clk
00:19:01] [%emt 00:02:59]} 19...g4 {[%clk 00:08:27] [%emt 00:06:24]} 20.Qh6 
{[%clk 00:15:37] [%emt 00:03:52]} 20...Re6 {[%clk 00:04:06] [%emt 00:04:52]} 
21.Qg5+ {[%clk 00:13:07] [%emt 00:03:00]} 21...Rg6 {[%clk 00:04:00] [%emt
00:00:36]} 22.Qxd8+ {[%clk 00:12:22] [%emt 00:01:15]} 22...Rxd8 {[%clk 00:04:29]
[%emt 00:00:01]} 23.h5 {[%clk 00:11:11] [%emt 00:01:40]} 23...Re6 {[%clk
00:04:40] [%emt 00:00:20]} 24.Bg5 {[%clk 00:08:35] [%emt 00:03:05]} 24...f6 
{[%clk 00:02:58] [%emt 00:02:13]} 25.Be3 {[%clk 00:08:27] [%emt 00:00:38]} 
25...f5 {[%clk 00:02:21] [%emt 00:01:07]} 26.fxg4 {[%clk 00:04:01] [%emt
00:04:56]} 26...fxe4 {[%clk 00:02:36] [%emt 00:00:15]} 27.Kg3 {[%clk 00:01:53]
[%emt 00:02:38]} 27...Ne5 {[%clk 00:02:17] [%emt 00:00:50]} 28.Rh4 {[%clk
00:00:58] [%emt 00:01:24]} 28...c5 {[%clk 00:00:58] [%emt 00:01:50]} 29.Kh2 
{[%clk 00:00:46] [%emt 00:00:41]} 29...Bc2 {[%clk 00:00:43] [%emt 00:00:45]} 
30.Ra1 {[%clk 00:00:44] [%emt 00:00:32]} 30...Bd3 {[%clk 00:00:43] [%emt
00:00:30]} 31.Rd1 {[%clk 00:00:36] [%emt 00:00:39]} 31...c4 {[%clk 00:00:37]
[%emt 00:00:36]} 32.Bxd4 {[%clk 00:00:37] [%emt 00:00:29]} 32...Rxd4 {[%clk
00:01:03] [%emt 00:00:04]} 33.g5 {[%clk 00:00:55] [%emt 00:00:11]} 33...Nf7 
{[%clk 00:00:34] [%emt 00:00:59]} 34.g6 {[%clk 00:00:55] [%emt 00:00:30]} 
34...hxg6 {[%clk 00:00:56] [%emt 00:00:08]} 35.hxg6 {[%clk 00:01:21] [%emt
00:00:04]} 35...Ne5 {[%clk 00:00:36] [%emt 00:00:50]} 36.Bxd3 {[%clk 00:01:20]
[%emt 00:00:31]} 36...cxd3 {[%clk 00:00:39] [%emt 00:00:27]} 37.Nxe4 {[%clk
00:01:29] [%emt 00:00:21]} 37...Kg7 {[%clk 00:01:03] [%emt 00:00:06]} 38.Kg1 
{[%clk 00:01:13] [%emt 00:00:46]} 38...Rxg6 {[%clk 00:00:47] [%emt 00:00:47]} 
39.Rf4 {[%clk 00:00:44] [%emt 00:00:58]} 39...Nc4 {[%clk 00:00:33] [%emt
00:00:44]} 40.Ng3 {[%clk 00:00:53] [%emt 00:00:21]} 40...Nxb2 {[%clk 00:00:33]
[%emt 00:00:31]} 41.Nf5+ {[%clk 00:45:49] [%emt 00:05:33]} 41...Kh8 {[%clk
00:37:51] [%emt 00:13:12]} 42.Rxd4 {[%clk 00:43:09] [%emt 00:03:09]} 42...Nxd1 
{[%clk 00:38:19] [%emt 00:00:03]} 43.Rh4+ {[%clk 00:37:16] [%emt 00:06:23]} 
43...Kg8 {[%clk 00:38:49]} 44.Ne7+ {[%clk 00:37:09] [%emt 00:00:37]} 44...Kg7 
{[%clk 00:39:04] [%emt 00:00:15]} 45.Nxg6 {[%clk 00:36:32] [%emt 00:01:06]} 
45...Kxg6 {[%clk 00:39:03] [%emt 00:00:33]} 46.Rd4 {[%clk 00:34:38] [%emt
00:02:23]} 46...Nb2 {[%clk 00:39:29] [%emt 00:00:04]} 47.Kf2 {[%clk 00:29:55]
[%emt 00:05:12]} 47...b5 {[%clk 00:39:39] [%emt 00:00:21]} 48.Ke3 {[%clk
00:18:13] [%emt 00:12:11]} 48...a5 {[%clk 00:35:24] [%emt 00:04:46]} 49.Rd6+ 
{[%clk 00:16:59] [%emt 00:01:44]} 49...Kf7 {[%emt 00:05:50]} 50.Ra6 {[%clk
00:11:54]} 50...a4 {[%clk 00:32:12] [%emt 00:03:57]} 51.g4 {[%clk 00:06:47]
[%emt 00:05:36]} 51...Nc4+ {[%clk 00:08:23] [%emt 00:24:20]} 52.Kxd3 {[%clk
00:07:07] [%emt 00:00:10]} 52...Nxa3 {[%clk 00:08:51] [%emt 00:00:02]} 53.Rb6 
{[%clk 00:06:28] [%emt 00:01:09]} 53...Kg7 {[%clk 00:06:43] [%emt 00:02:38]} 
54.g5 {[%clk 00:06:15] [%emt 00:00:43]} 54...Kh7 {[%clk 00:04:06] [%emt
00:03:08]} 55.Ke4 {[%clk 00:05:01] [%emt 00:01:43]} 55...Nc4 {[%clk 00:03:21]
[%emt 00:01:16]} 56.Ra6 {[%clk 00:05:21] [%emt 00:00:10]} 56...a3 {[%clk
00:02:57] [%emt 00:00:53]} 57.Kf5 {[%clk 00:05:16] [%emt 00:00:34]} 57...Ne3+ 
{[%clk 00:02:45] [%emt 00:00:42]} 58.Kf6 {[%clk 00:05:07] [%emt 00:00:39]} 
58...Ng4+ {[%clk 00:02:41] [%emt 00:00:35]} 59.Kf7 {[%clk 00:05:19] [%emt
00:00:17]} 59...Ne5+ {[%clk 00:02:52] [%emt 00:00:20]} 60.Kf6 {[%clk 00:02:35]
[%emt 00:03:14]} 60...Ng4+ {[%clk 00:03:04] [%emt 00:00:18]} 61.Kf5 {[%clk
00:02:35] [%emt 00:00:30]} 61...Ne3+ {[%clk 00:03:23] [%emt 00:00:11]} 62.Kf4 
{[%clk 00:12:44] [%emt 00:05:21]} 62...Nd5+ {[%clk 00:07:41] [%emt 00:11:13]} 
63.Ke5 {[%clk 00:11:05] [%emt 00:02:08]} 63...Ne3 {[%clk 00:07:37] [%emt
00:00:34]} 64.g6+ {[%clk 00:10:22] [%emt 00:01:13]} 64...Kh6 {[%clk 00:07:27]
[%emt 00:00:40]} 65.Rxa3 {[%clk 00:09:51] [%emt 00:01:01]} 1-0

[Event "FIDE Grand Swiss 2023"]
[Site "Villa Marina, Douglas, Isle of Man"]
[Date "2023.10.25"]
[Round "1.16"]
[White "Erigaisi, Arjun"]
[Black "Svane, Frederik"]
[Result "1-0"]
[WhiteElo "2712"]
[BlackElo "2626"]
[EventDate "2023.10.25"]
[ECO "D38"]
[PlyCount "73"]
[BlackFideId "12923044"]
[TimeControl "40/100 + 20/50 + 15 + 30s/move"]
[WhiteFideId "35009192"]

1.d4 {[%clk 01:40:55] [%emt 00:00:05]} 1...Nf6 {[%clk 01:40:48] [%emt 00:00:13]} 
2.c4 {[%clk 01:41:18] [%emt 00:00:06]} 2...e6 {[%clk 01:41:13] [%emt 00:00:05]} 
3.Nf3 {[%clk 01:41:43] [%emt 00:00:05]} 3...d5 {[%clk 01:41:36] [%emt 00:00:07]} 
4.cxd5 {[%clk 01:42:07] [%emt 00:00:06]} 4...exd5 {[%clk 01:41:56] [%emt
00:00:11]} 5.Nc3 {[%clk 01:42:32] [%emt 00:00:05]} 5...Bb4 {[%clk 01:36:48]
[%emt 00:05:37]} 6.Bf4 {[%clk 01:42:45] [%emt 00:00:17]} 6...Ne4 {[%clk
01:32:03] [%emt 00:05:15]} 7.Rc1 {[%clk 01:42:42] [%emt 00:00:33]} 7...Nd7 
{[%clk 01:31:51] [%emt 00:00:42]} 8.Nd2 {[%clk 01:20:38] [%emt 00:22:34]} 
8...Nxd2 {[%clk 01:32:15] [%emt 00:00:07]} 9.Qxd2 {[%clk 01:21:03] [%emt
00:00:05]} 9...c6 {[%clk 01:32:38] [%emt 00:00:07]} 10.a3 {[%clk 01:20:46] [%emt
00:00:46]} 10...Be7 {[%clk 01:27:45] [%emt 00:05:24]} 11.e3 {[%clk 01:19:35]
[%emt 00:01:41]} 11...Nf6 {[%clk 01:27:10] [%emt 00:01:05]} 12.h4 {[%clk
01:12:26] [%emt 00:07:38]} 12...O-O {[%clk 01:22:25] [%emt 00:05:15]} 13.Bd3 
{[%clk 01:09:48] [%emt 00:03:08]} 13...g6 {[%clk 01:04:58] [%emt 00:17:57]} 
14.Bg5 {[%clk 00:59:53] [%emt 00:10:25]} 14...Re8 {[%clk 01:00:12] [%emt
00:05:16]} 15.f3 {[%clk 00:56:19] [%emt 00:04:04]} 15...Kg7 {[%clk 00:53:39]
[%emt 00:07:04]} 16.Kd1 {[%clk 00:42:31] [%emt 00:14:17]} 16...Ng8 {[%clk
00:44:03] [%emt 00:10:07]} 17.Bf4 {[%clk 00:41:41] [%emt 00:01:20]} 17...Bxh4 
{[%clk 00:42:01] [%emt 00:02:32]} 18.e4 {[%clk 00:41:33] [%emt 00:00:37]} 
18...Be6 {[%clk 00:29:47] [%emt 00:12:45]} 19.Kc2 {[%clk 00:39:19] [%emt
00:02:44]} 19...h6 {[%clk 00:26:21] [%emt 00:03:56]} 20.g4 {[%clk 00:22:49]
[%emt 00:16:59]} 20...Rc8 {[%clk 00:10:09] [%emt 00:16:42]} 21.e5 {[%clk
00:18:44] [%emt 00:04:36]} 21...c5 {[%clk 00:06:11] [%emt 00:04:28]} 22.Be3 
{[%clk 00:19:08] [%emt 00:00:05]} 22...g5 {[%clk 00:04:57] [%emt 00:01:45]} 
23.Kb1 {[%clk 00:16:36] [%emt 00:03:01]} 23...cxd4 {[%clk 00:03:30] [%emt
00:01:58]} 24.Bxd4 {[%clk 00:17:01] [%emt 00:00:05]} 24...Ne7 {[%clk 00:03:57]
[%emt 00:00:03]} 25.Rxh4 {[%clk 00:08:51] [%emt 00:08:40]} 25...gxh4 {[%clk
00:01:47] [%emt 00:02:40]} 26.Rh1 {[%clk 00:08:21] [%emt 00:00:59]} 26...Nc6 
{[%clk 00:01:19] [%emt 00:00:59]} 27.Bf2 {[%clk 00:08:21] [%emt 00:00:29]} 
27...Nxe5 {[%clk 00:00:35] [%emt 00:01:14]} 28.Bxh4 {[%clk 00:08:45] [%emt
00:00:06]} 28...f6 {[%clk 00:00:44] [%emt 00:00:21]} 29.Qxh6+ {[%clk 00:09:07]
[%emt 00:00:08]} 29...Kf7 {[%clk 00:01:12] [%emt 00:00:02]} 30.Bg6+ {[%clk
00:04:48] [%emt 00:04:50]} 30...Nxg6 {[%clk 00:01:02] [%emt 00:00:40]} 31.Qh7+ 
{[%clk 00:05:13] [%emt 00:00:04]} 31...Kf8 {[%clk 00:01:30] [%emt 00:00:02]} 
32.Qxg6 {[%clk 00:05:38] [%emt 00:00:05]} 32...Rc6 {[%clk 00:01:34] [%emt
00:00:27]} 33.Bxf6 {[%clk 00:05:58] [%emt 00:00:10]} 33...Bf5+ {[%clk 00:02:02]
[%emt 00:00:02]} 34.Qxf5 {[%clk 00:06:22] [%emt 00:00:06]} 34...Rxf6 {[%clk
00:01:02] [%emt 00:01:29]} 35.Rh8+ {[%clk 00:06:45] [%emt 00:00:06]} 35...Ke7 
{[%clk 00:00:31] [%emt 00:01:02]} 36.Nxd5+ {[%clk 00:07:01] [%emt 00:00:14]} 
36...Qxd5 {[%clk 00:00:48] [%emt 00:00:14]} 37.Rxe8+ {[%clk 00:07:26] [%emt
00:00:05]} 1-0